[Event "*** Titled Tuesday Blitz"]
[Site "Chess.com"]
[Date "2020.04.21"]
[Round "8"]
[White "czasnaszachy"]
[Black "avocadosheena"]
[Result "1/2-1/2"]
[WhiteElo "2305"]
[BlackElo "2116"]
[TimeControl "180+1"]
[EndTime "11:39:47 PDT"]
[Termination "Game drawn by repetition"]

1. d4 {[%clk 0:02:56.1]} 1... Nf6 {[%clk 0:02:58.4]} 2. c4 {[%clk 0:02:55.4]}
2... e6 {[%clk 0:02:56.9]} 3. Nc3 {[%clk 0:02:55.3]} 3... Bb4 {[%clk 0:02:50]}
4. e3 {[%clk 0:02:55.1]} 4... c5 {[%clk 0:02:46.6]} 5. Ne2 {[%clk 0:02:54.1]}
5... cxd4 {[%clk 0:02:07.4]} 6. exd4 {[%clk 0:02:53.4]} 6... d5 {[%clk
0:02:04.5]} 7. a3 {[%clk 0:02:49.5]} 7... Be7 {[%clk 0:01:57.8]} 8. c5 {[%clk
0:02:25]} 8... b6 {[%clk 0:01:41.8]} 9. b4 {[%clk 0:02:21]} 9... a5 {[%clk
0:01:37.2]} 10. Bd2 {[%clk 0:02:09.9]} 10... Bd7 {[%clk 0:01:26.6]} 11. Ng3
{[%clk 0:01:57.9]} 11... O-O {[%clk 0:00:57.7]} 12. Bd3 {[%clk 0:01:51]} 12...
Nc6 {[%clk 0:00:40.5]} 13. Nce2 {[%clk 0:01:16.1]} 13... e5 {[%clk 0:00:29.8]}
14. b5 {[%clk 0:00:46.7]} 14... Nxd4 {[%clk 0:00:28.9]} 15. Nxd4 {[%clk
0:00:45.7]} 15... exd4 {[%clk 0:00:29.8]} 16. c6 {[%clk 0:00:45.5]} 16... Be6
{[%clk 0:00:24.3]} 17. O-O {[%clk 0:00:39.6]} 17... Bc5 {[%clk 0:00:16.5]} 18.
Bg5 {[%clk 0:00:24.1]} 18... h6 {[%clk 0:00:15.9]} 19. Bf4 {[%clk 0:00:22.5]}
19... Bd6 {[%clk 0:00:15.5]} 20. Bxd6 {[%clk 0:00:22]} 20... Qxd6 {[%clk
0:00:16.4]} 21. Nf5 {[%clk 0:00:22]} 21... Qc5 {[%clk 0:00:15.6]} 22. a4 {[%clk
0:00:19.2]} 22... Bxf5 {[%clk 0:00:14.2]} 23. Bxf5 {[%clk 0:00:18.8]} 23... Ne4
{[%clk 0:00:14.4]} 24. Bxe4 {[%clk 0:00:14.7]} 24... dxe4 {[%clk 0:00:15.3]} 25.
Qd2 {[%clk 0:00:10.4]} 25... f5 {[%clk 0:00:14.9]} 26. Rac1 {[%clk 0:00:09.7]}
26... Qd6 {[%clk 0:00:14.3]} 27. Rfd1 {[%clk 0:00:08.6]} 27... d3 {[%clk
0:00:14.5]} 28. Qc3 {[%clk 0:00:05.7]} 28... Qf6 {[%clk 0:00:14]} 29. Qxf6
{[%clk 0:00:04.4]} 29... Rxf6 {[%clk 0:00:14.9]} 30. f3 {[%clk 0:00:03.9]} 30...
Rc8 {[%clk 0:00:14.7]} 31. Kf2 {[%clk 0:00:03.9]} 31... Rd6 {[%clk 0:00:14.1]}
32. Ke3 {[%clk 0:00:04]} 32... Re6 {[%clk 0:00:13.8]} 33. fxe4 {[%clk
0:00:04.1]} 33... fxe4 {[%clk 0:00:14.7]} 34. g3 {[%clk 0:00:04.2]} 34... Kf7
{[%clk 0:00:14.6]} 35. Rd2 {[%clk 0:00:04.6]} 35... Ke7 {[%clk 0:00:14.7]} 36.
Rc4 {[%clk 0:00:04.9]} 36... Kd6 {[%clk 0:00:13.7]} 37. Rxe4 {[%clk 0:00:05.3]}
37... Rxe4+ {[%clk 0:00:13.5]} 38. Kxe4 {[%clk 0:00:05.9]} 38... Kc5 {[%clk
0:00:11.7]} 39. Rxd3 {[%clk 0:00:06.1]} 39... Kb4 {[%clk 0:00:11.5]} 40. Rd4+
{[%clk 0:00:06.6]} 40... Kb3 {[%clk 0:00:11.4]} 41. Ke5 {[%clk 0:00:06.7]} 41...
Re8+ {[%clk 0:00:10.4]} 42. Kd5 {[%clk 0:00:06.1]} 42... Rd8+ {[%clk 0:00:10.6]}
43. Ke5 {[%clk 0:00:06.4]} 43... Re8+ {[%clk 0:00:10.7]} 44. Kf4 {[%clk
0:00:05.1]} 44... Rf8+ {[%clk 0:00:10.6]} 45. Ke4 {[%clk 0:00:05]} 45... Re8+
{[%clk 0:00:10.8]} 46. Kd3 {[%clk 0:00:05.4]} 46... Rc8 {[%clk 0:00:10.6]} 47.
Ke3 {[%clk 0:00:04.4]} 47... Re8+ {[%clk 0:00:09.9]} 48. Re4 {[%clk 0:00:04.8]}
48... Rc8 {[%clk 0:00:09.4]} 49. Kd4 {[%clk 0:00:05.1]} 49... Kxa4 {[%clk
0:00:09.1]} 50. Kd5+ {[%clk 0:00:04.8]} 50... Kxb5 {[%clk 0:00:09.4]} 51. Kd6
{[%clk 0:00:05]} 51... Rxc6+ {[%clk 0:00:09.1]} 52. Kd5 {[%clk 0:00:04.1]} 52...
Rc5+ {[%clk 0:00:09.2]} 53. Kd6 {[%clk 0:00:04.2]} 53... Rc4 {[%clk 0:00:08.9]}
54. Re5+ {[%clk 0:00:04.3]} 54... Rc5 {[%clk 0:00:08.7]} 55. Re7 {[%clk
0:00:04.6]} 55... g5 {[%clk 0:00:08]} 56. Rh7 {[%clk 0:00:04.7]} 56... Rc6+
{[%clk 0:00:08.1]} 57. Kd5 {[%clk 0:00:04.8]} 57... Rf6 {[%clk 0:00:08.1]} 58.
Rb7 {[%clk 0:00:04.1]} 58... Ka6 {[%clk 0:00:07.8]} 59. Rb8 {[%clk 0:00:03.9]}
59... b5 {[%clk 0:00:07.4]} 60. Ra8+ {[%clk 0:00:03.9]} 60... Kb6 {[%clk
0:00:07.7]} 61. Rb8+ {[%clk 0:00:04]} 61... Ka6 {[%clk 0:00:08]} 62. Ra8+ {[%clk
0:00:04.4]} 62... Kb6 {[%clk 0:00:08.4]} 63. Rb8+ {[%clk 0:00:04.9]} 63... Ka6
{[%clk 0:00:08.8]} 1/2-1/2

[Event "*** Titled Tuesday Blitz"]
[Site "Chess.com"]
[Date "2020.04.21"]
[Round "8"]
[White "regular_legs"]
[Black "GMBenjaminBok"]
[Result "1/2-1/2"]
[WhiteElo "2598"]
[BlackElo "2876"]
[TimeControl "180+1"]
[EndTime "11:39:48 PDT"]
[Termination "Game drawn by repetition"]

1. d4 {[%clk 0:03:00]} 1... Nf6 {[%clk 0:02:59.7]} 2. c4 {[%clk 0:02:59.8]} 2...
e6 {[%clk 0:02:59.9]} 3. Nc3 {[%clk 0:02:59]} 3... Bb4 {[%clk 0:02:59.6]} 4. f3
{[%clk 0:02:59.3]} 4... d5 {[%clk 0:02:38.8]} 5. a3 {[%clk 0:02:53.1]} 5... Be7
{[%clk 0:02:38.5]} 6. e4 {[%clk 0:02:52.2]} 6... dxe4 {[%clk 0:02:38.6]} 7. fxe4
{[%clk 0:02:52.7]} 7... c5 {[%clk 0:02:39.3]} 8. d5 {[%clk 0:02:48.3]} 8... exd5
{[%clk 0:02:39.2]} 9. exd5 {[%clk 0:02:48.5]} 9... O-O {[%clk 0:02:38.9]} 10.
Be2 {[%clk 0:02:49]} 10... Bf5 {[%clk 0:02:30.8]} 11. Nf3 {[%clk 0:02:45.8]}
11... a6 {[%clk 0:02:30.8]} 12. O-O {[%clk 0:02:35.3]} 12... Bg6 {[%clk
0:02:30.8]} 13. Nh4 {[%clk 0:02:17.1]} 13... Re8 {[%clk 0:02:24.5]} 14. Nf5
{[%clk 0:02:10]} 14... Bf8 {[%clk 0:02:05.1]} 15. Bg5 {[%clk 0:02:05.9]} 15...
Nbd7 {[%clk 0:02:05.6]} 16. Bd3 {[%clk 0:01:59.1]} 16... Qb6 {[%clk 0:02:01.4]}
17. Qd2 {[%clk 0:01:56.2]} 17... Ng4 {[%clk 0:01:46]} 18. Be2 {[%clk 0:01:33.3]}
18... Nge5 {[%clk 0:01:37.1]} 19. Kh1 {[%clk 0:01:30]} 19... Qb3 {[%clk
0:01:33.7]} 20. Ne3 {[%clk 0:01:30]} 20... Bd6 {[%clk 0:01:19.5]} 21. Rf2 {[%clk
0:01:21.7]} 21... f6 {[%clk 0:01:04.2]} 22. Bf4 {[%clk 0:01:21]} 22... Re7
{[%clk 0:00:57.3]} 23. Bd1 {[%clk 0:01:13]} 23... Qb6 {[%clk 0:00:54.2]} 24. Bc2
{[%clk 0:01:12.6]} 24... Rae8 {[%clk 0:00:50]} 25. Bxg6 {[%clk 0:01:12]} 25...
hxg6 {[%clk 0:00:49.9]} 26. Re1 {[%clk 0:01:06]} 26... Qb3 {[%clk 0:00:48.8]}
27. Qd1 {[%clk 0:01:01.3]} 27... Qxd1 {[%clk 0:00:45.5]} 28. Rxd1 {[%clk
0:01:01.8]} 28... Nf7 {[%clk 0:00:31.5]} 29. Nc2 {[%clk 0:00:46.5]} 29... Bxf4
{[%clk 0:00:23.3]} 30. Rxf4 {[%clk 0:00:47.4]} 30... Nd6 {[%clk 0:00:24]} 31. b3
{[%clk 0:00:47.3]} 31... b5 {[%clk 0:00:18.7]} 32. cxb5 {[%clk 0:00:38.9]} 32...
axb5 {[%clk 0:00:19.6]} 33. a4 {[%clk 0:00:39.5]} 33... b4 {[%clk 0:00:18.4]}
34. Nb5 {[%clk 0:00:39.8]} 34... Nxb5 {[%clk 0:00:17.2]} 35. axb5 {[%clk
0:00:40.7]} 35... Re2 {[%clk 0:00:17.3]} 36. Rc4 {[%clk 0:00:38.7]} 36... Kf7
{[%clk 0:00:12.3]} 37. Kg1 {[%clk 0:00:38.3]} 37... Rb8 {[%clk 0:00:10.1]} 38.
Kf1 {[%clk 0:00:37.5]} 38... Re5 {[%clk 0:00:10]} 39. Ra1 {[%clk 0:00:24.8]}
39... Rxb5 {[%clk 0:00:08]} 40. Ra7 {[%clk 0:00:24.6]} 40... Rxd5 {[%clk
0:00:08]} 41. Ne3 {[%clk 0:00:25]} 41... Rd6 {[%clk 0:00:07.4]} 42. Re4 {[%clk
0:00:24.4]} 42... Rb8 {[%clk 0:00:05]} 43. Nc4 {[%clk 0:00:24.2]} 43... Rd5
{[%clk 0:00:04.7]} 44. Ne3 {[%clk 0:00:11.6]} 44... Rd6 {[%clk 0:00:04.1]} 45.
Nc4 {[%clk 0:00:11.6]} 45... Rd5 {[%clk 0:00:03.3]} 46. Ne3 {[%clk 0:00:11]}
46... Rd2 {[%clk 0:00:02.9]} 47. Nc4 {[%clk 0:00:10.9]} 47... Rd1+ {[%clk
0:00:02]} 48. Ke2 {[%clk 0:00:11.1]} 48... Rd5 {[%clk 0:00:02.1]} 49. Ne3 {[%clk
0:00:11.5]} 49... Rd6 {[%clk 0:00:02.1]} 50. Nc4 {[%clk 0:00:11.8]} 50... Rd5
{[%clk 0:00:01.9]} 51. Ne3 {[%clk 0:00:12.2]} 51... Rd6 {[%clk 0:00:02.2]} 52.
Nc4 {[%clk 0:00:12.6]} 52... Rd5 {[%clk 0:00:02.6]} 1/2-1/2

[Event "*** Titled Tuesday Blitz"]
[Site "Chess.com"]
[Date "2020.04.21"]
[Round "8"]
[White "tigra"]
[Black "Volodar_Murzin"]
[Result "1-0"]
[WhiteElo "2779"]
[BlackElo "2641"]
[TimeControl "180+1"]
[EndTime "11:39:49 PDT"]
[Termination "tigra won by resignation"]

1. e4 {[%clk 0:03:00.9]} 1... g6 {[%clk 0:02:59.6]} 2. d4 {[%clk 0:02:59.7]}
2... Bg7 {[%clk 0:02:44.8]} 3. Nc3 {[%clk 0:02:45.6]} 3... d6 {[%clk 0:02:44.4]}
4. Bc4 {[%clk 0:02:41.5]} 4... Nf6 {[%clk 0:02:42.7]} 5. Nf3 {[%clk 0:02:38.6]}
5... O-O {[%clk 0:02:42.7]} 6. Bb3 {[%clk 0:02:38.3]} 6... Nc6 {[%clk
0:02:38.7]} 7. h3 {[%clk 0:02:27.2]} 7... e5 {[%clk 0:02:36.5]} 8. dxe5 {[%clk
0:02:25.8]} 8... dxe5 {[%clk 0:02:28.2]} 9. O-O {[%clk 0:02:22.7]} 9... Be6
{[%clk 0:01:59.7]} 10. Bxe6 {[%clk 0:02:21.1]} 10... fxe6 {[%clk 0:01:58.8]} 11.
Bg5 {[%clk 0:02:06.4]} 11... Qe7 {[%clk 0:01:50.9]} 12. Qe1 {[%clk 0:01:12.4]}
12... h6 {[%clk 0:01:45.9]} 13. Bxf6 {[%clk 0:01:11.1]} 13... Rxf6 {[%clk
0:01:45.5]} 14. Ne2 {[%clk 0:00:59]} 14... Raf8 {[%clk 0:01:34.2]} 15. Rd1
{[%clk 0:00:50.5]} 15... Rxf3 {[%clk 0:01:11.7]} 16. gxf3 {[%clk 0:00:50.2]}
16... Qg5+ {[%clk 0:01:11.6]} 17. Kh2 {[%clk 0:00:46.8]} 17... Nd4 {[%clk
0:01:11]} 18. Ng1 {[%clk 0:00:18.8]} 18... Qf4+ {[%clk 0:00:32.6]} 19. Kg2
{[%clk 0:00:13.3]} 19... Qg5+ {[%clk 0:00:19.8]} 20. Kh1 {[%clk 0:00:11.3]}
20... Qh5 {[%clk 0:00:17.8]} 21. Rd3 {[%clk 0:00:04.3]} 21... Nxc2 {[%clk
0:00:17.2]} 22. Qa5 {[%clk 0:00:03.9]} 22... Nd4 {[%clk 0:00:14.1]} 23. Qxc7
{[%clk 0:00:03.8]} 23... Nxf3 {[%clk 0:00:12.5]} 24. Qd7 {[%clk 0:00:03.4]}
24... Ng5 {[%clk 0:00:10.2]} 25. Qxb7 {[%clk 0:00:02.8]} 25... Qh4 {[%clk
0:00:08.8]} 26. Qc6 {[%clk 0:00:01.7]} 26... Nxe4 {[%clk 0:00:07.4]} 27. Qxe6+
{[%clk 0:00:01.2]} 27... Kh8 {[%clk 0:00:07.6]} 28. Rf3 {[%clk 0:00:01.7]} 28...
Rd8 {[%clk 0:00:04.1]} 29. Qg4 {[%clk 0:00:01.6]} 29... Qxg4 {[%clk 0:00:03.9]}
30. hxg4 {[%clk 0:00:02.5]} 30... Nd2 {[%clk 0:00:04.1]} 31. Rd1 {[%clk
0:00:02.8]} 31... e4 {[%clk 0:00:04.5]} 32. Rf7 {[%clk 0:00:03]} 32... Bxb2
{[%clk 0:00:04.4]} 33. Rxa7 {[%clk 0:00:02.8]} 33... Rd4 {[%clk 0:00:03.8]} 34.
Rb7 {[%clk 0:00:02.8]} 34... Ba3 {[%clk 0:00:03.5]} 35. Rb8+ {[%clk 0:00:02.1]}
35... Kg7 {[%clk 0:00:03.3]} 36. Rb6 {[%clk 0:00:03]} 36... h5 {[%clk
0:00:02.4]} 37. Ne2 {[%clk 0:00:03.3]} 37... Rd3 {[%clk 0:00:02.5]} 38. Rxg6+
{[%clk 0:00:03.1]} 38... Kxg6 {[%clk 0:00:02.4]} 39. Nf4+ {[%clk 0:00:04]} 39...
Kg5 {[%clk 0:00:02.6]} 40. Nxd3 {[%clk 0:00:04.9]} 40... Nf3 {[%clk 0:00:02.8]}
41. Nc5 {[%clk 0:00:04.2]} 41... Kxg4 {[%clk 0:00:02.3]} 42. Nxe4 {[%clk
0:00:04.1]} 42... Kf4 {[%clk 0:00:02.6]} 43. Ng3 {[%clk 0:00:03.7]} 43... h4
{[%clk 0:00:02.9]} 44. Rd3 {[%clk 0:00:03.6]} 44... hxg3 {[%clk 0:00:02.9]} 45.
fxg3+ {[%clk 0:00:03.6]} 45... Ke4 {[%clk 0:00:03]} 46. Rxa3 {[%clk 0:00:04.5]}
46... Ne5 {[%clk 0:00:03.7]} 47. Ra4+ {[%clk 0:00:04.5]} 47... Kd5 {[%clk
0:00:03]} 48. Kg2 {[%clk 0:00:04.3]} 48... Kc5 {[%clk 0:00:03.2]} 49. Ra5+
{[%clk 0:00:04.4]} 49... Kd4 {[%clk 0:00:03.7]} 50. Rxe5 {[%clk 0:00:05.3]}
50... Kxe5 {[%clk 0:00:04.6]} 51. a4 {[%clk 0:00:05.9]} 51... Kd4 {[%clk
0:00:05.2]} 52. a5 {[%clk 0:00:06.8]} 52... Kc5 {[%clk 0:00:04.9]} 53. g4 {[%clk
0:00:07.7]} 53... Kb5 {[%clk 0:00:05.3]} 54. g5 {[%clk 0:00:08.6]} 54... Kxa5
{[%clk 0:00:06.2]} 55. g6 {[%clk 0:00:09.5]} 55... Kb6 {[%clk 0:00:07.1]} 56. g7
{[%clk 0:00:10.4]} 56... Kc5 {[%clk 0:00:07.9]} 57. g8=Q {[%clk 0:00:10.8]}
57... Kd4 {[%clk 0:00:08.8]} 58. Qe6 {[%clk 0:00:11.1]} 58... Kc3 {[%clk
0:00:09.7]} 1-0

[Event "*** Titled Tuesday Blitz"]
[Site "Chess.com"]
[Date "2020.04.21"]
[Round "8"]
[White "Lysiak_Poltorak"]
[Black "Arek_pacitan"]
[Result "1-0"]
[WhiteElo "2364"]
[BlackElo "2546"]
[TimeControl "180+1"]
[EndTime "11:39:51 PDT"]
[Termination "Lysiak_Poltorak won by checkmate"]

1. e4 {[%clk 0:03:00.9]} 1... c5 {[%clk 0:02:58.3]} 2. Nf3 {[%clk 0:02:59.6]}
2... Nc6 {[%clk 0:02:58.5]} 3. d4 {[%clk 0:03:00.1]} 3... cxd4 {[%clk
0:02:59.4]} 4. Nxd4 {[%clk 0:03:01]} 4... Nf6 {[%clk 0:02:58]} 5. Nc3 {[%clk
0:03:01.4]} 5... e6 {[%clk 0:02:57.6]} 6. Ndb5 {[%clk 0:03:00.4]} 6... d6 {[%clk
0:02:57.6]} 7. Bf4 {[%clk 0:03:00.9]} 7... e5 {[%clk 0:02:57.8]} 8. Bg5 {[%clk
0:03:01.3]} 8... a6 {[%clk 0:02:56.5]} 9. Na3 {[%clk 0:03:01.4]} 9... Be6 {[%clk
0:02:56.4]} 10. Bc4 {[%clk 0:02:58.6]} 10... b5 {[%clk 0:02:52.7]} 11. Bd5
{[%clk 0:02:58]} 11... Rc8 {[%clk 0:02:47.6]} 12. Bxc6+ {[%clk 0:02:56.3]} 12...
Rxc6 {[%clk 0:02:48.5]} 13. Nd5 {[%clk 0:02:56.3]} 13... Be7 {[%clk 0:02:42.7]}
14. Nxe7 {[%clk 0:02:53.5]} 14... Qxe7 {[%clk 0:02:41.5]} 15. c3 {[%clk
0:02:53]} 15... h6 {[%clk 0:02:41]} 16. Bxf6 {[%clk 0:02:50.6]} 16... Qxf6
{[%clk 0:02:41.9]} 17. Nc2 {[%clk 0:02:50.8]} 17... Qg6 {[%clk 0:02:39]} 18. Qf3
{[%clk 0:02:47.5]} 18... Rc4 {[%clk 0:02:33.2]} 19. O-O {[%clk 0:02:41.1]} 19...
Qxe4 {[%clk 0:02:32.6]} 20. Qd1 {[%clk 0:02:34.1]} 20... O-O {[%clk 0:02:27.5]}
21. Ne3 {[%clk 0:02:32.3]} 21... Rc6 {[%clk 0:02:26.5]} 22. Re1 {[%clk
0:02:29.6]} 22... Qg6 {[%clk 0:02:15.6]} 23. Nd5 {[%clk 0:02:23.6]} 23... Bxd5
{[%clk 0:02:05.4]} 24. Qxd5 {[%clk 0:02:24.5]} 24... Rc5 {[%clk 0:02:05.8]} 25.
Qb7 {[%clk 0:02:23.5]} 25... a5 {[%clk 0:02:04.4]} 26. Rad1 {[%clk 0:02:22.8]}
26... Qe6 {[%clk 0:01:52.4]} 27. Qb6 {[%clk 0:02:20.6]} 27... Qxa2 {[%clk
0:01:44]} 28. Rxd6 {[%clk 0:02:18.6]} 28... Rd5 {[%clk 0:01:38.3]} 29. Rxd5
{[%clk 0:02:15.6]} 29... Qxd5 {[%clk 0:01:39.2]} 30. Qxa5 {[%clk 0:02:13.9]}
30... Rd8 {[%clk 0:01:38.2]} 31. h3 {[%clk 0:02:06.7]} 31... Kh7 {[%clk
0:01:37.1]} 32. Qb4 {[%clk 0:02:06]} 32... f5 {[%clk 0:01:34.5]} 33. Qe7 {[%clk
0:01:56.9]} 33... e4 {[%clk 0:01:34.5]} 34. Re3 {[%clk 0:01:48.5]} 34... Rd7
{[%clk 0:01:34.3]} 35. Qh4 {[%clk 0:01:42.6]} 35... Qd1+ {[%clk 0:01:25.9]} 36.
Kh2 {[%clk 0:01:41.5]} 36... Qc1 {[%clk 0:01:21.3]} 37. Qf4 {[%clk 0:01:33.8]}
37... Rd5 {[%clk 0:01:21.1]} 38. Rxe4 {[%clk 0:00:54.1]} 38... Qxb2 {[%clk
0:01:20.4]} 39. Rd4 {[%clk 0:00:47.6]} 39... Rc5 {[%clk 0:01:13.1]} 40. Rd3
{[%clk 0:00:41.4]} 40... Qc2 {[%clk 0:01:08.5]} 41. Rg3 {[%clk 0:00:31.3]} 41...
Qe4 {[%clk 0:00:51.5]} 42. Qxe4 {[%clk 0:00:29.9]} 42... fxe4 {[%clk 0:00:52.4]}
43. Re3 {[%clk 0:00:30.4]} 43... Kg6 {[%clk 0:00:48.9]} 44. Rxe4 {[%clk
0:00:30]} 44... Rxc3 {[%clk 0:00:49]} 45. Re6+ {[%clk 0:00:29.6]} 45... Kf5
{[%clk 0:00:46.1]} 46. Rb6 {[%clk 0:00:29.4]} 46... Rb3 {[%clk 0:00:46]} 47. g3
{[%clk 0:00:23.8]} 47... Rb2 {[%clk 0:00:44.9]} 48. Kg2 {[%clk 0:00:21.2]} 48...
b4 {[%clk 0:00:45.2]} 49. Kf3 {[%clk 0:00:20.3]} 49... Rb3+ {[%clk 0:00:44.6]}
50. Ke2 {[%clk 0:00:20.5]} 50... Rb2+ {[%clk 0:00:44.9]} 51. Ke3 {[%clk
0:00:20.3]} 51... Rb1 {[%clk 0:00:44.4]} 52. Rb5+ {[%clk 0:00:19.8]} 52... Ke6
{[%clk 0:00:44.6]} 53. Ke4 {[%clk 0:00:19.7]} 53... b3 {[%clk 0:00:42.8]} 54.
Rb6+ {[%clk 0:00:19.2]} 54... Kf7 {[%clk 0:00:43.2]} 55. Kf5 {[%clk 0:00:19.3]}
55... b2 {[%clk 0:00:43.1]} 56. Rb7+ {[%clk 0:00:18.9]} 56... Kf8 {[%clk
0:00:38.2]} 57. f4 {[%clk 0:00:18.9]} 57... g5 {[%clk 0:00:37.4]} 58. Kf6 {[%clk
0:00:17.6]} 58... Ke8 {[%clk 0:00:37.2]} 59. f5 {[%clk 0:00:18]} 59... Kd8
{[%clk 0:00:34.9]} 60. Rb3 {[%clk 0:00:17.5]} 60... Kd7 {[%clk 0:00:32.4]} 61.
Kg6 {[%clk 0:00:17.6]} 61... g4 {[%clk 0:00:26.7]} 62. hxg4 {[%clk 0:00:17]}
62... Kd6 {[%clk 0:00:27]} 63. f6 {[%clk 0:00:17.1]} 63... Ke6 {[%clk
0:00:27.4]} 64. f7 {[%clk 0:00:15.6]} 64... Ke7 {[%clk 0:00:27.9]} 65. Re3+
{[%clk 0:00:15]} 65... Kf8 {[%clk 0:00:26.5]} 66. Re8# {[%clk 0:00:14.3]} 1-0

[Event "*** Titled Tuesday Blitz"]
[Site "Chess.com"]
[Date "2020.04.21"]
[Round "8"]
[White "Sanyura"]
[Black "GM_DarwinLaylo"]
[Result "1-0"]
[WhiteElo "2452"]
[BlackElo "2564"]
[TimeControl "180+1"]
[EndTime "11:39:52 PDT"]
[Termination "Sanyura won on time"]

1. e4 {[%clk 0:03:00.9]} 1... c5 {[%clk 0:02:59.4]} 2. Nf3 {[%clk 0:03:00]} 2...
e6 {[%clk 0:02:59.4]} 3. d4 {[%clk 0:03:00.1]} 3... cxd4 {[%clk 0:02:59.6]} 4.
Nxd4 {[%clk 0:03:01]} 4... Qb6 {[%clk 0:02:59.8]} 5. Nb3 {[%clk 0:02:59.9]} 5...
Nf6 {[%clk 0:02:59.3]} 6. Nc3 {[%clk 0:03:00.2]} 6... Bb4 {[%clk 0:02:58.3]} 7.
Bd2 {[%clk 0:02:59.4]} 7... Nc6 {[%clk 0:02:49.6]} 8. Bd3 {[%clk 0:02:57.4]}
8... O-O {[%clk 0:02:46.9]} 9. a3 {[%clk 0:02:56]} 9... Be7 {[%clk 0:02:41.6]}
10. O-O {[%clk 0:02:53.4]} 10... d6 {[%clk 0:02:39.6]} 11. Kh1 {[%clk
0:02:52.9]} 11... a6 {[%clk 0:02:36]} 12. f4 {[%clk 0:02:52.9]} 12... e5 {[%clk
0:02:30.4]} 13. f5 {[%clk 0:02:52.5]} 13... Rd8 {[%clk 0:02:29.2]} 14. Nd5
{[%clk 0:02:51.3]} 14... Nxd5 {[%clk 0:02:21.6]} 15. exd5 {[%clk 0:02:52.2]}
15... Nd4 {[%clk 0:02:10.9]} 16. Ba5 {[%clk 0:02:47.1]} 16... Qa7 {[%clk
0:02:11]} 17. f6 {[%clk 0:02:47.3]} 17... Bxf6 {[%clk 0:02:05.4]} 18. Rxf6
{[%clk 0:02:46.6]} 18... b6 {[%clk 0:02:03.4]} 19. Nxd4 {[%clk 0:02:43.1]} 19...
exd4 {[%clk 0:01:53.9]} 20. Qh5 {[%clk 0:02:42.3]} 20... g6 {[%clk 0:01:33.1]}
21. Qg5 {[%clk 0:02:42]} 21... bxa5 {[%clk 0:01:26.8]} 22. Rxg6+ {[%clk
0:02:42.2]} 22... hxg6 {[%clk 0:01:24.6]} 23. Qxd8+ {[%clk 0:02:42.2]} 23... Kg7
{[%clk 0:01:25.1]} 24. Qxd6 {[%clk 0:02:42.1]} 24... Qb8 {[%clk 0:01:14.3]} 25.
Qc5 {[%clk 0:02:33.5]} 25... Qe5 {[%clk 0:01:10.2]} 26. Rf1 {[%clk 0:02:30.1]}
26... Bb7 {[%clk 0:01:04.2]} 27. Qb6 {[%clk 0:01:02.6]} 27... Rh8 {[%clk
0:00:54.6]} 28. Rxf7+ {[%clk 0:00:52.7]} 28... Kxf7 {[%clk 0:00:53.7]} 29. Qxb7+
{[%clk 0:00:53.2]} 29... Kf8 {[%clk 0:00:43]} 30. Qc8+ {[%clk 0:00:50.3]} 30...
Kg7 {[%clk 0:00:41.9]} 31. Qd7+ {[%clk 0:00:48.5]} 31... Kf6 {[%clk 0:00:39.1]}
32. Qc6+ {[%clk 0:00:47.5]} 32... Ke7 {[%clk 0:00:38.1]} 33. Qb7+ {[%clk
0:00:37.8]} 33... Kf8 {[%clk 0:00:33.5]} 34. Qc8+ {[%clk 0:00:37.4]} 34... Kg7
{[%clk 0:00:32.3]} 35. Qd7+ {[%clk 0:00:37.3]} 35... Kh6 {[%clk 0:00:26.2]} 36.
Qf7 {[%clk 0:00:19.1]} 36... Qe1+ {[%clk 0:00:21.4]} 37. Bf1 {[%clk 0:00:19.1]}
37... Re8 {[%clk 0:00:14.8]} 38. h3 {[%clk 0:00:10.5]} 38... Qe7 {[%clk
0:00:12.4]} 39. Qf4+ {[%clk 0:00:10]} 39... Kh7 {[%clk 0:00:12.5]} 40. d6 {[%clk
0:00:09.1]} 40... Qg7 {[%clk 0:00:08.4]} 41. Qh4+ {[%clk 0:00:07.1]} 41... Qh6
{[%clk 0:00:06.2]} 42. Qxd4 {[%clk 0:00:06.9]} 42... Rf8 {[%clk 0:00:05.3]} 43.
Bd3 {[%clk 0:00:05.6]} 43... Qc1+ {[%clk 0:00:02.9]} 44. Kh2 {[%clk 0:00:05.2]}
44... Qf4+ {[%clk 0:00:03.4]} 45. Qxf4 {[%clk 0:00:05.1]} 45... Rxf4 {[%clk
0:00:03]} 46. d7 {[%clk 0:00:03.6]} 46... Rd4 {[%clk 0:00:02.5]} 47. Bxa6 {[%clk
0:00:04.1]} 47... Rxd7 {[%clk 0:00:02.5]} 48. b4 {[%clk 0:00:04.8]} 48... axb4
{[%clk 0:00:01.7]} 49. axb4 {[%clk 0:00:05.7]} 49... Rd2 {[%clk 0:00:01.5]} 50.
c4 {[%clk 0:00:05.8]} 1-0